Cogmind - Beta 10.2 *** ADVENTURER MODE // 2022.01.03 @ 23:44:15 // Winter2019/RPGLIKE Player: Grommile Result: Self-destructed Performance ------------- Evolutions (1) 500 Regions Visited (4) 800 Robots Destroyed (50) 250 Value Destroyed (621) 621 Prototype IDs (5) 100 Alien Tech Used (0) 0 Bonus (0) 0 TOTAL SCORE: 2271 Bonus ------- None Cogmind --------- Core Integrity 493/600 Matter 71/300 Energy 160/160 System Corruption 0% Temperature Cool (0) Movement Treading (160) Location -9/Storage Parts ------- > --- POWER (1) -------- Light Nuclear Core > --- PROPULSION (2) --- Light Treads Light Treads > --- UTILITY (3) ------ Cooling System Improved Signal Interpreter Improved Terrain Scanner > --- WEAPON (3) ------- Light Cannon Light Cannon Missile Launcher > --- INVENTORY (4) ---- Targeting Computer Beam Cannon Mining Laser Peak State ------------ > --- POWER ------------ Light Nuclear Core > --- PROPULSION ------- Light Treads Light Treads > --- UTILITY ---------- Cooling System Improved Signal Interpreter Improved Terrain Scanner > --- WEAPON ----------- Light Cannon Light Cannon Missile Launcher > --- INVENTORY -------- Targeting Computer Beam Cannon Mining Laser [Rating: 16] Favorites ----------- Power Light Nuclear Core Engine Ion Engine Power Core Light Nuclear Core Propulsion Light Treads Treads Light Treads Utility Improved Terrain Scanner Device Improved Terrain Scanner Processor Seismic Analyzer Protection Light Armor Plating Weapon Light Cannon Ballistic Gun Assault Rifle Ballistic Cannon Light Cannon Launcher Mini Grenade Launcher Build | -11 -10 -10 -9 -9 ------- Run | Scr Mat Min Mat Sto Slots Evolved 5 | 5 . . . . Power . | . . . . . Propulsion 1 | 1 . . . . Utility 2 | 2 . . . . Weapon 2 | 2 . . . . Parts Attached 17 | 8 6 1 2 . Power 2 | 1 1 . . . Engine 1 | 1 . . . . Core 1 | . 1 . . . Reactor . | . . . . . Propulsion 2 | 2 . . . . Treads 2 | 2 . . . . Leg . | . . . . . Wheel . | . . . . . Hover . | . . . . . Flight . | . . . . . Utility 5 | 2 2 . 1 . Device 2 | 1 1 . . . Storage . | . . . . . Processor 2 | 1 . . 1 . Hackware . | . . . . . Protection 1 | . 1 . . . Artifact . | . . . . . Weapon 8 | 3 3 1 1 . Energy Gun . | . . . . . Energy Cannon . | . . . . . Ballistic Gun 3 | 3 . . . . Ballistic Cannon 2 | . 2 . . . Launcher 3 | . 1 1 1 . Special Weapon . | . . . . . Impact Weapon . | . . . . . Slashing Weapon . | . . . . . Piercing Weapon . | . . . . . Special Melee Weapon . | . . . . . Unidentified Prototypes . | . . . . . Parts Lost . | . . . . . Power . | . . . . . Propulsion . | . . . . . Utility . | . . . . . Weapon . | . . . . . Highest Loss Streak . | . . . . . Average Slot Usage (%) 97 | . 94 99 100 . Core 10 | . 9 11 11 . Treads 22 | . 22 22 22 . Device 18 | . 14 22 22 . Processor 11 | . 11 11 11 . Protection 1 | . 2 . . . Ballistic Gun 9 | . 17 . . . Ballistic Cannon 16 | . 11 22 22 . Launcher 7 | . 3 10 11 . Naked Turns . | . . . . . Heaviest Build 20 | 12 17 18 20 . Greatest Support 40 | 40 40 40 40 . Greatest Overweight (x) 1 | 1 . . . . Average Overweight (x) . | . . . . . Largest Inventory Capacity 4 | . . 3 4 . Average Capacity 1 | . . 2 3 . Most Carried 3 | . . 3 3 . Average Carried 1 | . . 2 3 . Final Capacity 4 | . . 3 4 4 Final Carried 3 | . . 3 3 3 Class Distribution -------------------- 55% | Mutant 44% | Skirmisher Dominant Class ---------------- Skirmisher | -10/Materials Mutant | -10/Mines Skirmisher | -9/Materials Skirmisher | -9/Storage Resources | -11 -10 -10 -9 -9 ----------- Run | Scr Mat Min Mat Sto Matter Collected 911 | 352 402 125 32 . Remotely . | . . . . . Salvage Created 1103 | 159 706 154 84 . Parts 99 | 16 41 25 17 . Haulers Intercepted 2 | . 2 . . . Recyclers Shooed 1 | . 1 . . . Parts Field Recycled . | . . . . . Retrieved Matter . | . . . . . Parts Self-Destructed . | . . . . . Prevented . | . . . . . Kills | -11 -10 -10 -9 -9 ------- Run | Scr Mat Min Mat Sto Combat Hostiles Destroyed 26 | . 8 10 8 . Guns 6 | . 6 . . . Cannons 20 | . 2 10 8 . Classes Destroyed 8 | 2 6 . . . Worker 3 | . 3 . . . Builder 3 | . 2 1 . . Tunneler 7 | 4 1 2 . . Hauler 2 | . 2 . . . Recycler 4 | 1 2 1 . . Watcher 5 | . 3 . 2 . Swarmer 21 | . 3 10 8 . Grunt 5 | . 5 . . . Best Kill Streak 5 | 5 3 3 4 . Combat Bots Only 3 | . 3 3 3 . Max Kills in Single Turn 2 | 1 1 2 1 . Gunslinging . | . . . . . Exploded . | . . . . . Melee . | . . . . . Uniques/NPCs Destroyed . | . . . . . Combat | -11 -10 -10 -9 -9 -------- Run | Scr Mat Min Mat Sto Damage Taken 477 | . 157 214 106 . Core 374 | . 128 163 83 . Absorbed by Shields . | . . . . . Redirected to Core 295 | . 90 140 65 . Core Remaining (%) 93 | 100 . 86 . . Volleys Fired 91 | 8 41 26 16 . Largest 3 | 3 3 2 2 . Hottest 90 | 60 90 70 70 . Shots Fired 220 | 24 112 52 32 . Gun 104 | 24 80 . . . Cannon 116 | . 32 52 32 . Launcher . | . . . . . Special . | . . . . . Kinetic 220 | 24 112 52 32 . Thermal . | . . . . . Explosive . | . . . . . Electromagnetic . | . . . . . Robot Hit Streak 33 | 19 33 18 17 . Robot Miss Streak 3 | . 2 2 3 . Penetration Max . | . . . . . Secondary Targets 1 | . 1 . . . Max Gunslinging Chain 1 | . 1 . . . Shots Hit Robots 148 | 19 73 33 23 . Core Hits 63 | 6 32 15 10 . Critical Hits 2 | . . 1 1 . Critical Kills 1 | . . 1 . . Critical Parts Destroyed 1 | . . . 1 . Melee Attacks . | . . . . . Impact . | . . . . . Slashing . | . . . . . Piercing . | . . . . . Sneak Attacks . | . . . . . Combat Hostiles . | . . . . . Follow-up Attacks . | . . . . . Damage Inflicted 2183 | 245 943 565 430 . Guns 934 | 245 689 . . . Cannons 1240 | . 246 565 429 . Explosions . | . . . . . Melee . | . . . . . Ramming 9 | . 8 . 1 . Kinetic 2174 | 245 935 565 429 . Thermal . | . . . . . Explosive . | . . . . . Electromagnetic . | . . . . . Impact . | . . . . . Slashing . | . . . . . Piercing . | . . . . . Highest Corruption . | . . . . . Average Corruption . | . . . . . Corruption Purged . | . . . . . Overload Shots . | . . . . . Overflow Damage 22 | . . 18 4 . Projectiles 22 | . . 18 4 . Explosions . | . . . . . Melee . | . . . . . Knockbacks 14 | . 3 6 5 . Impact . | . . . . . Kinetic 13 | . 3 5 5 . Secondary 1 | . . 1 . . Self-Inflicted Damage . | . . . . . Shots . | . . . . . Rammed 3 | . 2 . 1 . Targets Rammed 3 | . 2 . 1 . Kicked . | . . . . . Crushed . | . . . . . Highest Temperature 141 | . 141 . . . Average Temperature 33 | . 33 . . . Received Heat Transfer 132 | . 105 9 18 . Siege Activations . | . . . . . Robots Corrupted . | . . . . . Combat Hostiles . | . . . . . Parts Fried . | . . . . . Impact Corruptions . | . . . . . Robots Melted . | . . . . . Combat Hostiles . | . . . . . Parts Melted . | . . . . . Heat Transferred . | . . . . . Parts Sabotaged . | . . . . . Parts Stolen . | . . . . . Parts Stripped . | . . . . . Power Chain Reactions . | . . . . . Missiles Intercepted . | . . . . . Alert | -11 -10 -10 -9 -9 ------- Run | Scr Mat Min Mat Sto Peak Influence 318 | 25 249 119 318 . Initial 114 | . 13 4 22 114 Average 76 | 11 75 63 158 . Maximum Alert Level 1 | . 1 . 1 . Low Security (%) 88 | 100 86 100 61 . Level 1 11 | . 13 . 38 . Level 2 . | . . . . . Level 3 . | . . . . . Level 4 . | . . . . . Level 5 . | . . . . . High Security . | . . . . . Max Security . | . . . . . Squads Dispatched 1 | . 1 . . . Investigation 1 | . 1 . . . Extermination . | . . . . . Reinforcement . | . . . . . Assault . | . . . . . Garrison . | . . . . . Intercept . | . . . . . Construction Impeded . | . . . . . Haulers Reinforced . | . . . . . Stealth | -11 -10 -10 -9 -9 --------- Run | Scr Mat Min Mat Sto Distress Signals 4 | . . . 4 . Communications Jammed . | . . . . . Distress Signals . | . . . . . Times Spotted 39 | . 12 11 16 . Peak Tracking Total 5 | . 2 3 5 . Tactical Retreats 3 | . . . 3 . Traps | -11 -10 -10 -9 -9 ------- Run | Scr Mat Min Mat Sto Traps Triggered 1 | . 1 . . . Indirectly . | . . . . . Trap Hack Attempts . | . . . . . Triggered . | . . . . . Disarmed . | . . . . . Reprogrammed . | . . . . . Reused . | . . . . . Traps Extracted . | . . . . . Installed . | . . . . . Triggered . | . . . . . Machines | -11 -10 -10 -9 -9 ---------- Run | Scr Mat Min Mat Sto Machines Disabled 4 | . 3 . 1 . Max in Single Turn 1 | . 1 . 1 . Machines Sabotaged . | . . . . . Garrisons Compromised . | . . . . . Overloaded Fab Kills . | . . . . . Fab Network Shutdowns . | . . . . . Hacking | -11 -10 -10 -9 -9 --------- Run | Scr Mat Min Mat Sto Machines Accessed 7 | . 6 . 1 . Terminals 5 | . 4 . 1 . Fabricators . | . . . . . Repair Stations . | . . . . . Recycling Units 2 | . 2 . . . Scanalyzers . | . . . . . Garrison Access . | . . . . . Total Hacks 23 | . 20 . 3 . Successful 16 | . 13 . 3 . Failed 7 | . 7 . . . Catastrophic . | . . . . . Database Lockouts . | . . . . . Manual 15 | . 14 . 1 . Terminals 18 | . 15 . 3 . Fabricators . | . . . . . Repair Stations . | . . . . . Recycling Units 5 | . 5 . . . Scanalyzers . | . . . . . Garrison Access . | . . . . . Terminal Hacks 13 | . 10 . 3 . Prototype ID Bank 5 | . 4 . 1 . Branch Access Points 2 | . 1 . 1 . Emergency Access Points 1 | . 1 . . . Locate Traps 3 | . 2 . 1 . Zone Layout 2 | . 2 . . . Fabricator Hacks . | . . . . . Repair Station Hacks . | . . . . . Recycling Unit Hacks 1 | . 1 . . . Retrieve Components 1 | . 1 . . . Scanalyzer . | . . . . . Garrison Access Hacks . | . . . . . Unauthorized Hacks 2 | . 2 . . . Terminals . | . . . . . Fabricators . | . . . . . Repair Stations . | . . . . . Recycling Units 2 | . 2 . . . Reject 2 | . 2 . . . Scanalyzers . | . . . . . Garrison Access . | . . . . . Data Cores Recovered . | . . . . . Used . | . . . . . Hacking Detections 5 | . 5 . . . Full Trace Events 1 | . 1 . . . Feedback Events . | . . . . . Feedback Blocked . | . . . . . Robot Schematics Acquired . | . . . . . Robots Built . | . . . . . Matter . | . . . . . Time . | . . . . . Total Robot Build Rating . | . . . . . Part Schematics Acquired . | . . . . . Parts Built . | . . . . . Matter . | . . . . . Time . | . . . . . Total Part Build Rating . | . . . . . Parts Repaired . | . . . . . Time . | . . . . . Parts Recycled . | . . . . . Recycled Matter . | . . . . . Retrieved Matter . | . . . . . Retrieved Components 3 | . 3 . . . Parts Scanalyzed . | . . . . . Part Schematics Acquired . | . . . . . Parts Damaged . | . . . . . Bothacking | -11 -10 -10 -9 -9 ------------ Run | Scr Mat Min Mat Sto Used RIF Installer . | . . . . . Robots Hacked . | . . . . . Non-combat . | . . . . . Combat . | . . . . . Robot Hacks Applied . | . . . . . Relay Couplers Released . | . . . . . Robots Rewired . | . . . . . Allies Hacked . | . . . . . Hacks Repelled . | . . . . . Allies | -11 -10 -10 -9 -9 -------- Run | Scr Mat Min Mat Sto Total Allies . | . . . . . Largest Group . | . . . . . Highest-Rated Group . | . . . . . Highest-Rated Ally . | . . . . . Total Orders . | . . . . . Ally Attacks . | . . . . . Total Damage . | . . . . . Kills . | . . . . . Allies Corrupted . | . . . . . Allies Melted . | . . . . . Intel | -11 -10 -10 -9 -9 ------- Run | Scr Mat Min Mat Sto Robot Analysis Total . | . . . . . Derelict Logs Recovered . | . . . . . Drone Launches . | . . . . . Drone Recoveries . | . . . . . Exploration | -11 -10 -10 -9 -9 ------------- Run | Scr Mat Min Mat Sto Turns Passed 2951 | 119 1531 1009 292 . Spaces Moved 1626 | 54 859 566 147 . Core 5 | 5 . . . . Treads 1621 | 49 859 566 147 . Legs . | . . . . . Wheels . | . . . . . Hover . | . . . . . Flight . | . . . . . Fastest Speed 50 | 50 160 160 160 . Average Speed 159 | 151 160 160 160 . Slowest Speed 160 | 160 160 160 160 . Overloaded Moves . | . . . . . Propulsion Burnouts . | . . . . . Robots Hopped . | . . . . . Cave-ins Triggered . | . . . . . Exploration Rate (%) 44 | 5 95 95 22 3 Regions Visited 4 Branch Regions 2 Pre-discovered Areas . | . . . . . Known Exits Taken 2 | . 1 . 1 . Unknown Exits Taken 2 | 1 . 1 . . Scrap Searched 1 | . . 1 . . Spaces Dug . | . . . . . Terrain Destroyed . | . . . . . Melee . | . . . . . Projectile . | . . . . . AOE . | . . . . . Terrain Rammed . | . . . . . Walls Destroyed . | . . . . . Machines Disabled . | . . . . . Actions | -11 -10 -10 -9 -9 --------- Run | Scr Mat Min Mat Sto Total 1783 | 69 925 618 171 . Wait 21 | . 11 10 . . Move 1622 | 53 858 565 146 . Hop . | . . . . . Pick Up 3 | . . 3 . . Fast Attach 17 | 8 6 1 2 . Attach . | . . . . . Detach . | . . . . . Swap . | . . . . . Drop 8 | . 5 1 2 . Fire 91 | 8 41 26 16 . Melee . | . . . . . Ram . | . . . . . Kick . | . . . . . Crush 3 | . 2 . 1 . Escape Stasis . | . . . . . Rewire . | . . . . . Trap . | . . . . . Miscellaneous 18 | . 2 12 4 . Route ------- -11/Scrapyard -10/Materials (discovered 5 exits: *Mat x3 / *Min x2) -10/Mines (discovered 2 exits: *Mat x2) -9/Materials (discovered 4 exits: Min x2 / *Sto x2) -9/Storage History --------- Turn | Location | Event 5 | -11/Scrapyard | Discovered new exit (range 15) 11 | -11/Scrapyard | Upgraded with Propulsion slot (x1) 11 | -11/Scrapyard | Upgraded with Utility slot (x2) 11 | -11/Scrapyard | Upgraded with Weapon slot (x2) 120 | -11/Scrapyard | Entered Materials 140 | -10/Materials | Discovered new exit (range 15) 231 | -10/Materials | Identified exit to Mines 314 | -10/Materials | Build established: Skirmisher 320 | -10/Materials | Discovered new exit (range 11) 621 | -10/Materials | Discovered new exit (range 13) 861 | -10/Materials | Discovered new exit (range 8) 1409 | -10/Materials | Build established: Mutant 1651 | -10/Materials | Entered Mines 1653 | -10/Mines | Reached level 2 1866 | -10/Mines | Joined a pair of Derelicts in attacking an 0b10 outpost 2022 | -10/Mines | Discovered new exit (range 16) 2296 | -10/Mines | Discovered new exit (range 11) 2322 | -10/Mines | Received a Rocket Launcher from a helpful Derelict 2660 | -10/Mines | Entered Materials 2662 | -9/Materials | Reached level 3 2662 | -9/Materials | Reached level 4 2754 | -9/Materials | Reached level 5 2931 | -9/Materials | Identified exit to Mines 2931 | -9/Materials | Identified exit to Storage 2952 | -9/Materials | Entered Storage 2952 | -9/Storage | Self-destructed Last Messages --------------- K-01 Serf collects debris. Connecting with Terminal... Current location identified: Materials >>Traps(Locate) Found 6 traps in 1 array: 6x Blade Trap Map updated. >>Prototypes Downloading prototype IDs... Adv. Beam Cannon Imp. Flight Unit >>Access(Branch) Found 4 branch access points: (50,49) Mines (62,71) Mines (62,83) Storage (9,35) Storage Map updated. LOCATION=STORAGE GOAL=ESCAPE Map ----- +----------------------------------------------------+ | | | | | | | | | | | | | | | | | | | | | | | | | | | | | | | | | | | | | | | | | ????????????????????????????????? | | ????????????????????????????????? | | ????????????????????????????????? | | ??????###############???????????? | | ??????# ????????? | | ??????# @ ????????? | | ??????# ????????? | | ??????###############???????????? | | ????????????????????????????????? | | ????????????????????????????????? | | ????????????????????????????????? | | ????????????????????????????????? | | ????????????????????????????????? | | ????????????????????????????????? | | ????????????????????????????????? | | ????????????????????????????????? | | ????????????????????????????????? | | ????????????????????????????????? | | ????????????????????????????????? | | ????????????????????????????????? | | ????????????????????????????????? | | ????????????????????????????????? | | ????????????????????????????????? | | ????????????????????????????????? | | ????????????????????????????????? | | ????????????????????????????????? | | ????????????????????????????????? | | ????????????????????????????????? | | ????????????????????????????????? | | ????????????????????????????????? | +----------------------------------------------------+ Best States ------------- Heat Dissipation 47 Energy Generation 14 Energy Capacity 250 Matter Stores 300 Matter Capacity 300 Sight Range 16 Robot Scan Range 22 Terrain Scan Range 16 Terrain Scan Density 60 Armor Coverage 150 Resistance: KI 20 Resistance: TH 20 Resistance: EX 20 Resistance: EM 20 Resistance: I 20 Resistance: S 20 Resistance: P 20 Evasion (%) 40 Recoil Reduction 2 Offensive Hacking 10 Item Schematics ----------------- None Robot Schematics ------------------ None Fabricated ------------ Nothing Alien Tech Used ----------------- None Achievements -------------- None Challenges ------------ None RPGLIKE | -11 -10 -10 -9 -9 --------- Run | Scr Mat Min Mat Sto Levels Raised 4 | . . 1 3 . XP Earned 10768 | 4000 1345 1650 3773 . XP Spent 8425 | 4000 . 1500 2925 . Upgrades 22 | 7 . 3 12 . Propulsion Slot 1 | 1 . . . . Utility Slot 2 | 2 . . . . Weapon Slot 2 | 2 . . . . Inventory Capacity 4 | . . 3 1 . Sensor Range 11 | . . . 11 . Ranged Accuracy 2 | 2 . . . . Protomatter Created 59 | . 9 31 19 . Integrity Restored 302 | . 27 218 57 . Core 267 | . 27 183 57 . Parts 35 | . . 35 . . Protomatter Decayed 82 | . . 82 . . Game ------ Seed FlightFortressBlade Manual? 0 Play Time 00:15:20 Cumulative 23.9 hours Start 2022.01.03 @ 23:29:01 End 2022.01.03 @ 23:44:15 Sessions 1 Manual Loads 0 Difficulty Adventurer Special Mode Winter2019/RPGLIKE Game No. 42 Rogue 0 Adventurer 42 Explorer 0 Win Type - Total 0 Types 0/0/0/0/0/0/0/0/0 Lore% 46 Gallery% 53 Achievement% 29 Wizard Run 0 Options --------- ASCII 0 Keyboard 0 Movement Mouse Keybinds 0 Fullscreen 1 Font 18/SmallcapsGlow Map View 76x50 Tactical HUD 0 Map Filters NONE Filters NONE Steam 1 RUN: b425df92-1a7d-4157-8cc1-cc46c249cfe1